[Event "Early-Titled-Tuesday-Blitz-October-24-2023"]
[Site "Chess.com"]
[Date "2023.10.24"]
[Round "1"]
[White "Zurability"]
[Black "NovikovaGalina"]
[Result "1-0"]
[WhiteElo "2806"]
[BlackElo "2439"]
[TimeControl "180+1"]
[EndTime "8:08:04 PDT"]
[Termination "Zurability won by checkmate"]

1. Nf3 {[%clk 0:03:00.9]} 1... e6 {[%clk 0:02:59.7]} 2. g3 {[%clk 0:02:58.8]}
2... f5 {[%clk 0:03:00.1]} 3. d3 {[%clk 0:02:54.1]} 3... Nf6 {[%clk 0:03:00.1]}
4. Nbd2 {[%clk 0:02:53.8]} 4... d6 {[%clk 0:02:59.9]} 5. e4 {[%clk 0:02:53.9]}
5... e5 {[%clk 0:02:59.7]} 6. Bg2 {[%clk 0:02:47]} 6... Be7 {[%clk 0:02:58.8]}
7. O-O {[%clk 0:02:45.7]} 7... Nc6 {[%clk 0:02:59.3]} 8. exf5 {[%clk 0:02:44.9]}
8... Bxf5 {[%clk 0:02:58.8]} 9. d4 {[%clk 0:02:45.6]} 9... exd4 {[%clk 0:02:44]}
10. Nb3 {[%clk 0:02:41]} 10... O-O {[%clk 0:02:42.9]} 11. Nfxd4 {[%clk
0:02:38.2]} 11... Nxd4 {[%clk 0:02:33.2]} 12. Nxd4 {[%clk 0:02:37]} 12... Bc8
{[%clk 0:02:28.2]} 13. Re1 {[%clk 0:02:08.7]} 13... c6 {[%clk 0:02:26.4]} 14. c3
{[%clk 0:02:03.7]} 14... d5 {[%clk 0:02:24.7]} 15. Ne6 {[%clk 0:01:54]} 15...
Bxe6 {[%clk 0:02:24]} 16. Rxe6 {[%clk 0:01:54.9]} 16... Bc5 {[%clk 0:02:19.9]}
17. Be3 {[%clk 0:01:52.7]} 17... Bxe3 {[%clk 0:02:10.4]} 18. Rxe3 {[%clk
0:01:53.6]} 18... Qd7 {[%clk 0:02:05.6]} 19. Qd4 {[%clk 0:01:44.6]} 19... a6
{[%clk 0:01:59.3]} 20. c4 {[%clk 0:01:36.3]} 20... Rad8 {[%clk 0:01:30.4]} 21.
cxd5 {[%clk 0:01:33.4]} 21... Nxd5 {[%clk 0:01:31.3]} 22. Rd3 {[%clk 0:01:28.5]}
22... Qf5 {[%clk 0:01:24]} 23. Rad1 {[%clk 0:01:17.7]} 23... Rde8 {[%clk
0:00:39.9]} 24. Bxd5+ {[%clk 0:00:30.8]} 24... cxd5 {[%clk 0:00:39.5]} 25. Qxd5+
{[%clk 0:00:30.7]} 25... Qxd5 {[%clk 0:00:40.4]} 26. Rxd5 {[%clk 0:00:31.5]}
26... Re2 {[%clk 0:00:40]} 27. R1d2 {[%clk 0:00:32.1]} 27... Rfxf2 {[%clk
0:00:33.8]} 28. Rd8+ {[%clk 0:00:31.3]} 28... Kf7 {[%clk 0:00:32.1]} 29. R8d7+
{[%clk 0:00:30.5]} 29... Kf8 {[%clk 0:00:25.5]} 30. Rxe2 {[%clk 0:00:28.6]}
30... Rxe2 {[%clk 0:00:26.4]} 31. Rxb7 {[%clk 0:00:28.4]} 31... a5 {[%clk
0:00:26.3]} 32. h4 {[%clk 0:00:25.7]} 32... h5 {[%clk 0:00:21.8]} 33. Rb5 {[%clk
0:00:24.5]} 33... a4 {[%clk 0:00:20.6]} 34. Kf1 {[%clk 0:00:24]} 34... Rc2
{[%clk 0:00:19.7]} 35. Ke1 {[%clk 0:00:24.5]} 35... Kg8 {[%clk 0:00:16.3]} 36.
Kd1 {[%clk 0:00:24.6]} 36... Rg2 {[%clk 0:00:16.5]} 37. a3 {[%clk 0:00:15.4]}
37... g6 {[%clk 0:00:15.1]} 38. Rb4 {[%clk 0:00:14.8]} 38... Kg7 {[%clk
0:00:12.2]} 39. Kc1 {[%clk 0:00:15.3]} 39... Rxg3 {[%clk 0:00:09.7]} 40. Rxa4
{[%clk 0:00:15.5]} 40... g5 {[%clk 0:00:05.7]} 41. hxg5 {[%clk 0:00:11.1]} 41...
Kg6 {[%clk 0:00:06]} 42. Ra8 {[%clk 0:00:05.9]} 42... Kxg5 {[%clk 0:00:04.4]}
43. Rh8 {[%clk 0:00:05.7]} 43... h4 {[%clk 0:00:04.1]} 44. a4 {[%clk 0:00:06.5]}
44... Rf3 {[%clk 0:00:03.6]} 45. a5 {[%clk 0:00:07]} 45... Rf5 {[%clk
0:00:03.4]} 46. b4 {[%clk 0:00:06.9]} 46... Rb5 {[%clk 0:00:03.9]} 47. a6 {[%clk
0:00:03.6]} 47... Rxb4 {[%clk 0:00:04.3]} 48. a7 {[%clk 0:00:03.9]} 48... Ra4
{[%clk 0:00:03.4]} 49. a8=Q {[%clk 0:00:04.5]} 49... Rxa8 {[%clk 0:00:04.1]} 50.
Rxa8 {[%clk 0:00:05.1]} 50... h3 {[%clk 0:00:04.7]} 51. Kd2 {[%clk 0:00:05.4]}
51... Kf4 {[%clk 0:00:04.2]} 52. Ke2 {[%clk 0:00:04.9]} 52... Kg3 {[%clk
0:00:04.1]} 53. Kf1 {[%clk 0:00:03.2]} 53... Kh2 {[%clk 0:00:04]} 54. Ra3 {[%clk
0:00:03.1]} 54... Kh1 {[%clk 0:00:02.7]} 55. Rxh3# {[%clk 0:00:03.2]} 1-0

[Event "Early-Titled-Tuesday-Blitz-October-24-2023"]
[Site "Chess.com"]
[Date "2023.10.24"]
[Round "1"]
[White "abc_xyz4744"]
[Black "IljaZaragatski"]
[Result "1-0"]
[WhiteElo "2378"]
[BlackElo "2646"]
[TimeControl "180+1"]
[EndTime "8:08:04 PDT"]
[Termination "abc_xyz4744 won on time"]

1. e3 {[%clk 0:02:41.9]} 1... g6 {[%clk 0:02:53.3]} 2. d4 {[%clk 0:02:41]} 2...
Bg7 {[%clk 0:02:54.2]} 3. c4 {[%clk 0:02:40.9]} 3... c5 {[%clk 0:02:53.7]} 4.
Nf3 {[%clk 0:02:39.8]} 4... Nf6 {[%clk 0:02:52.7]} 5. Nc3 {[%clk 0:02:37.3]}
5... cxd4 {[%clk 0:02:49.4]} 6. exd4 {[%clk 0:02:38.2]} 6... d5 {[%clk
0:02:49.3]} 7. Bf4 {[%clk 0:02:36.1]} 7... O-O {[%clk 0:02:47.9]} 8. Be2 {[%clk
0:02:33.6]} 8... Nc6 {[%clk 0:02:46.4]} 9. O-O {[%clk 0:02:32.9]} 9... b6 {[%clk
0:02:37.5]} 10. Ne5 {[%clk 0:02:30.3]} 10... Bb7 {[%clk 0:02:36.3]} 11. cxd5
{[%clk 0:02:23.8]} 11... Nxd5 {[%clk 0:02:34.6]} 12. Nxd5 {[%clk 0:02:23]} 12...
Qxd5 {[%clk 0:02:35.5]} 13. Bf3 {[%clk 0:02:23.4]} 13... Qe6 {[%clk 0:01:03.7]}
14. d5 {[%clk 0:02:03.5]} 14... Qxe5 {[%clk 0:01:03.8]} 15. Bxe5 {[%clk
0:01:57.9]} 15... Nxe5 {[%clk 0:01:04.7]} 16. Re1 {[%clk 0:01:57]} 16... Rfd8
{[%clk 0:01:03.8]} 17. Qb3 {[%clk 0:01:56.3]} 17... Nxf3+ {[%clk 0:01:03.2]} 18.
Qxf3 {[%clk 0:01:55.9]} 18... Bxd5 {[%clk 0:01:03.8]} 19. Qa3 {[%clk 0:01:55]}
19... e6 {[%clk 0:01:03.7]} 20. Rad1 {[%clk 0:01:54.9]} 20... h5 {[%clk
0:01:03.5]} 21. b3 {[%clk 0:01:50.9]} 21... Rd7 {[%clk 0:01:03.3]} 22. Rc1
{[%clk 0:01:50.7]} 22... Rad8 {[%clk 0:01:02.6]} 23. Rc2 {[%clk 0:01:50.1]}
23... h4 {[%clk 0:01:02.8]} 24. h3 {[%clk 0:01:48.9]} 24... Bf6 {[%clk
0:01:00.8]} 25. Qa4 {[%clk 0:01:48.9]} 25... Kg7 {[%clk 0:00:59.9]} 26. Rec1
{[%clk 0:01:49]} 26... Bg5 {[%clk 0:00:59.7]} 27. Qg4 {[%clk 0:01:47.9]} 27...
Bxc1 {[%clk 0:00:59.1]} 28. Rxc1 {[%clk 0:01:46.6]} 28... Rh8 {[%clk 0:00:55.6]}
29. Qd4+ {[%clk 0:01:45.4]} 29... f6 {[%clk 0:00:50.9]} 30. Qa4 {[%clk
0:01:44.5]} 30... Rf7 {[%clk 0:00:46.5]} 31. Rd1 {[%clk 0:01:42.1]} 31... Rh5
{[%clk 0:00:45]} 32. Rd4 {[%clk 0:01:41.7]} 32... Rg5 {[%clk 0:00:44.7]} 33. Rg4
{[%clk 0:01:34.5]} 33... Rxg4 {[%clk 0:00:45.1]} 34. Qxg4 {[%clk 0:01:35]} 34...
g5 {[%clk 0:00:44.4]} 35. f4 {[%clk 0:01:34.4]} 35... Kg6 {[%clk 0:00:44.6]} 36.
g3 {[%clk 0:01:32]} 36... hxg3 {[%clk 0:00:43.9]} 37. h4 {[%clk 0:01:31.6]}
37... Rc7 {[%clk 0:00:40.7]} 38. Qxg3 {[%clk 0:01:31.4]} 38... Rc1+ {[%clk
0:00:40.3]} 39. Kf2 {[%clk 0:01:31.7]} 39... Rc2+ {[%clk 0:00:39.9]} 40. Ke1
{[%clk 0:01:31.5]} 40... Rg2 {[%clk 0:00:31.9]} 41. Qd3+ {[%clk 0:01:26.6]}
41... Kg7 {[%clk 0:00:30.9]} 42. fxg5 {[%clk 0:01:25.5]} 42... Rg1+ {[%clk
0:00:29.7]} 43. Kd2 {[%clk 0:01:24.3]} 43... Rg2+ {[%clk 0:00:29.5]} 44. Kc3
{[%clk 0:01:24.6]} 44... fxg5 {[%clk 0:00:29.1]} 45. h5 {[%clk 0:01:25.1]} 45...
Kf6 {[%clk 0:00:20.6]} 46. Qg6+ {[%clk 0:01:18.3]} 46... Ke5 {[%clk 0:00:20.8]}
47. h6 {[%clk 0:01:17.4]} 47... Rg3+ {[%clk 0:00:19.6]} 48. Kb4 {[%clk
0:01:13.8]} 48... Be4 {[%clk 0:00:19.4]} 49. Qg7+ {[%clk 0:01:12.6]} 49... Kf4
{[%clk 0:00:18.5]} 50. h7 {[%clk 0:01:10.2]} 50... Bxh7 {[%clk 0:00:18.5]} 51.
Qxh7 {[%clk 0:01:11.1]} 51... a5+ {[%clk 0:00:18.7]} 52. Kb5 {[%clk 0:01:11.2]}
52... e5 {[%clk 0:00:18.9]} 53. Kxb6 {[%clk 0:01:11.2]} 53... e4 {[%clk
0:00:18.5]} 54. Qc7+ {[%clk 0:01:10.9]} 54... Kf3 {[%clk 0:00:18.3]} 55. Qf7+
{[%clk 0:01:10.4]} 55... Ke2 {[%clk 0:00:17.5]} 56. Qc4+ {[%clk 0:01:08.9]}
56... Ke3 {[%clk 0:00:17.4]} 57. Kxa5 {[%clk 0:01:08.4]} 57... Rf3 {[%clk
0:00:14.7]} 58. b4 {[%clk 0:01:07.7]} 58... Rf5+ {[%clk 0:00:12.7]} 59. b5
{[%clk 0:01:07.3]} 59... g4 {[%clk 0:00:13.1]} 60. Qc3+ {[%clk 0:01:06.8]} 60...
Kf4 {[%clk 0:00:13.1]} 61. Qc7+ {[%clk 0:01:06.2]} 61... Kf3 {[%clk 0:00:13.3]}
62. Qd7 {[%clk 0:01:05.3]} 62... Kf4 {[%clk 0:00:09.5]} 63. Qd6+ {[%clk
0:01:02.8]} 63... Kf3 {[%clk 0:00:09.4]} 64. Qe6 {[%clk 0:00:59.9]} 64... Kf4
{[%clk 0:00:09]} 65. Ka6 {[%clk 0:00:55]} 65... g3 {[%clk 0:00:08.9]} 66. b6
{[%clk 0:00:53.1]} 66... g2 {[%clk 0:00:09.3]} 67. b7 {[%clk 0:00:50.3]} 67...
g1=Q {[%clk 0:00:09.2]} 68. b8=Q+ {[%clk 0:00:50.6]} 1-0

[Event "Early-Titled-Tuesday-Blitz-October-24-2023"]
[Site "Chess.com"]
[Date "2023.10.24"]
[Round "1"]
[White "dapsay"]
[Black "SchmakAttack"]
[Result "0-1"]
[WhiteElo "2408"]
[BlackElo "2756"]
[TimeControl "180+1"]
[EndTime "8:08:08 PDT"]
[Termination "SchmakAttack won by resignation"]

1. d4 {[%clk 0:02:52.2]} 1... e6 {[%clk 0:02:57.9]} 2. Bf4 {[%clk 0:02:52.4]}
2... b6 {[%clk 0:02:55.8]} 3. e3 {[%clk 0:02:52.7]} 3... Bb7 {[%clk 0:02:56]} 4.
Nf3 {[%clk 0:02:53]} 4... Nf6 {[%clk 0:02:51.6]} 5. c3 {[%clk 0:02:53.1]} 5...
c5 {[%clk 0:02:50.3]} 6. Nbd2 {[%clk 0:02:52.7]} 6... Be7 {[%clk 0:02:48.7]} 7.
Bc4 {[%clk 0:02:49.8]} 7... O-O {[%clk 0:02:47.1]} 8. O-O {[%clk 0:02:49.9]}
8... d5 {[%clk 0:02:28.3]} 9. Bd3 {[%clk 0:02:48]} 9... Nbd7 {[%clk 0:02:28.5]}
10. Re1 {[%clk 0:02:46.8]} 10... Ne4 {[%clk 0:02:25.1]} 11. h3 {[%clk 0:02:45]}
11... a5 {[%clk 0:02:12.6]} 12. a4 {[%clk 0:02:44.1]} 12... Ndf6 {[%clk
0:02:11.8]} 13. Ne5 {[%clk 0:02:43.5]} 13... Qc8 {[%clk 0:02:12]} 14. Qe2 {[%clk
0:02:42.2]} 14... Re8 {[%clk 0:01:57.4]} 15. Bb5 {[%clk 0:02:41.8]} 15... Ba6
{[%clk 0:01:56.7]} 16. f3 {[%clk 0:02:39.1]} 16... Nd6 {[%clk 0:01:47.8]} 17.
Bxa6 {[%clk 0:02:35.3]} 17... Qxa6 {[%clk 0:01:44.5]} 18. Nc6 {[%clk 0:02:19.6]}
18... Bf8 {[%clk 0:01:44.6]} 19. Ne5 {[%clk 0:02:07.3]} 19... Qxe2 {[%clk
0:01:40.7]} 20. Rxe2 {[%clk 0:02:07.1]} 20... Rec8 {[%clk 0:01:41]} 21. Bg5
{[%clk 0:02:02.2]} 21... Ra7 {[%clk 0:01:29.9]} 22. Ree1 {[%clk 0:01:57.3]}
22... Nd7 {[%clk 0:01:20.4]} 23. Nd3 {[%clk 0:01:54]} 23... cxd4 {[%clk
0:01:11.5]} 24. exd4 {[%clk 0:01:53.7]} 24... Nc4 {[%clk 0:01:11.8]} 25. Nxc4
{[%clk 0:01:52.4]} 25... Rxc4 {[%clk 0:01:12.7]} 26. Bd2 {[%clk 0:01:46.9]}
26... Rc6 {[%clk 0:01:08.1]} 27. Kf1 {[%clk 0:01:47]} 27... f6 {[%clk
0:01:08.1]} 28. Re2 {[%clk 0:01:45.8]} 28... Kf7 {[%clk 0:01:08.3]} 29. f4
{[%clk 0:01:45.2]} 29... Rb7 {[%clk 0:01:00]} 30. g4 {[%clk 0:01:44.7]} 30...
Bd6 {[%clk 0:00:51.5]} 31. Kf2 {[%clk 0:01:44.5]} 31... b5 {[%clk 0:00:50.7]}
32. axb5 {[%clk 0:01:43.7]} 32... Rxb5 {[%clk 0:00:51.6]} 33. Kf3 {[%clk
0:01:43.5]} 33... Nb6 {[%clk 0:00:46.7]} 34. Ra2 {[%clk 0:01:39.8]} 34... Nc4
{[%clk 0:00:45.8]} 35. Bc1 {[%clk 0:01:39.8]} 35... Ra6 {[%clk 0:00:41.2]} 36.
Ra4 {[%clk 0:01:37.7]} 36... Nb6 {[%clk 0:00:39.9]} 37. Ra2 {[%clk 0:01:37.1]}
37... a4 {[%clk 0:00:40.5]} 38. b4 {[%clk 0:01:33]} 38... Nc4 {[%clk 0:00:37.8]}
39. Nc5 {[%clk 0:01:24.8]} 39... Bxc5 {[%clk 0:00:38]} 40. dxc5 {[%clk
0:01:22.1]} 40... e5 {[%clk 0:00:38.3]} 41. Re1 {[%clk 0:01:10.1]} 41... g6
{[%clk 0:00:31.5]} 42. Be3 {[%clk 0:01:08.5]} 42... Rb8 {[%clk 0:00:21.3]} 43.
Rea1 {[%clk 0:01:06.9]} 43... a3 {[%clk 0:00:19.1]} 44. Rd1 {[%clk 0:01:06.7]}
44... Ke6 {[%clk 0:00:17.5]} 45. f5+ {[%clk 0:01:05.6]} 45... gxf5 {[%clk
0:00:18.4]} 46. gxf5+ {[%clk 0:01:06]} 46... Kxf5 {[%clk 0:00:19.3]} 47. Rxd5
{[%clk 0:01:05.8]} 47... Rg8 {[%clk 0:00:18.4]} 48. b5 {[%clk 0:00:53.9]} 48...
Ra5 {[%clk 0:00:18.1]} 49. c6 {[%clk 0:00:49.8]} 49... Nxe3 {[%clk 0:00:17.7]}
50. Kxe3 {[%clk 0:00:49.9]} 50... Rg3+ {[%clk 0:00:18.4]} 51. Kf2 {[%clk
0:00:49.7]} 51... Rxc3 {[%clk 0:00:18.5]} 52. Ke2 {[%clk 0:00:29.3]} 52... Rxc6
{[%clk 0:00:16.9]} 53. bxc6 {[%clk 0:00:28.9]} 53... Rxd5 {[%clk 0:00:17.6]} 54.
Rc2 {[%clk 0:00:27.3]} 54... Rd8 {[%clk 0:00:14.3]} 55. c7 {[%clk 0:00:22.2]}
55... Rc8 {[%clk 0:00:14.7]} 56. Ke3 {[%clk 0:00:22.6]} 56... a2 {[%clk
0:00:14.5]} 57. Rxa2 {[%clk 0:00:22.7]} 57... Rxc7 {[%clk 0:00:15.2]} 58. Rf2+
{[%clk 0:00:23.4]} 58... Ke6 {[%clk 0:00:15.4]} 59. Ra2 {[%clk 0:00:22.3]} 59...
Rc3+ {[%clk 0:00:15.4]} 60. Kf2 {[%clk 0:00:21.4]} 60... Rxh3 {[%clk 0:00:15.5]}
61. Ra7 {[%clk 0:00:22.2]} 61... Kf5 {[%clk 0:00:15.6]} 62. Kg2 {[%clk
0:00:22.2]} 62... Rh5 {[%clk 0:00:15]} 63. Kg3 {[%clk 0:00:22.7]} 63... Rg5+
{[%clk 0:00:15.2]} 64. Kh4 {[%clk 0:00:22]} 64... Rg1 {[%clk 0:00:14.9]} 65. Kh3
{[%clk 0:00:21.3]} 65... e4 {[%clk 0:00:15]} 66. Kh2 {[%clk 0:00:21.3]} 66...
Rg5 {[%clk 0:00:15]} 67. Rxh7 {[%clk 0:00:20.3]} 67... Kf4 {[%clk 0:00:15.7]}
68. Re7 {[%clk 0:00:20.8]} 68... f5 {[%clk 0:00:16.1]} 69. Kh3 {[%clk
0:00:21.1]} 69... Rg8 {[%clk 0:00:15.9]} 70. Ra7 {[%clk 0:00:20]} 70... Kf3
{[%clk 0:00:16.3]} 71. Ra3+ {[%clk 0:00:20.1]} 71... e3 {[%clk 0:00:16.8]} 72.
Kh2 {[%clk 0:00:19.6]} 72... f4 {[%clk 0:00:16.3]} 0-1

[Event "Early-Titled-Tuesday-Blitz-October-24-2023"]
[Site "Chess.com"]
[Date "2023.10.24"]
[Round "1"]
[White "Susal_De_Silva"]
[Black "SARGISMV"]
[Result "0-1"]
[WhiteElo "2741"]
[BlackElo "2426"]
[TimeControl "180+1"]
[EndTime "8:08:09 PDT"]
[Termination "SARGISMV won by resignation"]

1. Nf3 {[%clk 0:03:00.7]} 1... Nf6 {[%clk 0:02:59]} 2. c4 {[%clk 0:03:00.9]}
2... c5 {[%clk 0:02:59]} 3. Nc3 {[%clk 0:03:00.6]} 3... g6 {[%clk 0:02:58.9]} 4.
g3 {[%clk 0:03:00.9]} 4... Bg7 {[%clk 0:02:58.8]} 5. Bg2 {[%clk 0:03:01.5]} 5...
O-O {[%clk 0:02:58.8]} 6. O-O {[%clk 0:03:02.3]} 6... Nc6 {[%clk 0:02:58]} 7. d4
{[%clk 0:03:02]} 7... cxd4 {[%clk 0:02:58.9]} 8. Nxd4 {[%clk 0:03:02.9]} 8...
Ng4 {[%clk 0:02:58.7]} 9. e3 {[%clk 0:02:59.1]} 9... d6 {[%clk 0:02:58.1]} 10.
Nxc6 {[%clk 0:02:54.1]} 10... bxc6 {[%clk 0:02:57.9]} 11. Bxc6 {[%clk
0:02:54.8]} 11... Rb8 {[%clk 0:02:57.9]} 12. Bg2 {[%clk 0:02:48.1]} 12... Ne5
{[%clk 0:02:56.7]} 13. Qc2 {[%clk 0:02:43.2]} 13... Nxc4 {[%clk 0:02:50.1]} 14.
b3 {[%clk 0:02:43.4]} 14... Qa5 {[%clk 0:02:46.9]} 15. Nd5 {[%clk 0:02:10]}
15... Bxa1 {[%clk 0:02:24.6]} 16. Nxe7+ {[%clk 0:02:09.3]} 16... Kh8 {[%clk
0:02:23.9]} 17. Nc6 {[%clk 0:02:07.4]} 17... Qh5 {[%clk 0:01:45.3]} 18. Nxb8
{[%clk 0:01:59.8]} 18... Ne5 {[%clk 0:01:43.5]} 19. f4 {[%clk 0:01:52.9]} 19...
Bf5 {[%clk 0:01:23.4]} 20. Qc7 {[%clk 0:01:36.3]} 20... Ng4 {[%clk 0:00:47.6]}
21. h3 {[%clk 0:01:34.6]} 21... Nf6 {[%clk 0:00:39.8]} 22. g4 {[%clk 0:01:31.5]}
22... Bxg4 {[%clk 0:00:37.1]} 23. Qxd6 {[%clk 0:01:19.8]} 23... Rc8 {[%clk
0:00:20.9]} 24. hxg4 {[%clk 0:01:19.6]} 24... Nxg4 {[%clk 0:00:20]} 25. f5
{[%clk 0:01:17.6]} 25... Be5 {[%clk 0:00:14]} 26. Qxe5+ {[%clk 0:01:16.5]} 26...
Nxe5 {[%clk 0:00:13.2]} 27. Bb2 {[%clk 0:01:17.4]} 27... f6 {[%clk 0:00:13]} 28.
Bxe5 {[%clk 0:01:17]} 28... fxe5 {[%clk 0:00:13.1]} 29. Nc6 {[%clk 0:01:17.2]}
29... gxf5 {[%clk 0:00:12.7]} 30. Nxe5 {[%clk 0:01:17.1]} 30... Rc2 {[%clk
0:00:12.2]} 31. Rf2 {[%clk 0:00:49.7]} 31... Rxf2 {[%clk 0:00:11.4]} 32. Kxf2
{[%clk 0:00:50.6]} 32... Qh4+ {[%clk 0:00:11.5]} 33. Kf1 {[%clk 0:00:50.6]}
33... Qb4 {[%clk 0:00:10.7]} 34. Nc4 {[%clk 0:00:48.4]} 34... Qc3 {[%clk
0:00:10.2]} 35. Ke2 {[%clk 0:00:40.7]} 35... Qc2+ {[%clk 0:00:09.7]} 36. Nd2
{[%clk 0:00:41.5]} 36... Qxa2 {[%clk 0:00:10.3]} 37. Bh3 {[%clk 0:00:41.9]}
37... Qc2 {[%clk 0:00:09.8]} 38. Bg2 {[%clk 0:00:40.8]} 38... Kg7 {[%clk
0:00:10.1]} 39. Bd5 {[%clk 0:00:39.5]} 39... Kf6 {[%clk 0:00:10]} 40. Bc4 {[%clk
0:00:40.4]} 40... h5 {[%clk 0:00:10]} 41. Bd3 {[%clk 0:00:41.3]} 41... Qb2
{[%clk 0:00:09.9]} 42. Kd1 {[%clk 0:00:38.1]} 42... h4 {[%clk 0:00:09.8]} 43.
Nf3 {[%clk 0:00:38.7]} 43... Qa1+ {[%clk 0:00:09.5]} 44. Ke2 {[%clk 0:00:38.8]}
44... h3 {[%clk 0:00:10.4]} 45. Kf2 {[%clk 0:00:38.6]} 45... Qb2+ {[%clk
0:00:10.9]} 46. Be2 {[%clk 0:00:36.8]} 46... Qxb3 {[%clk 0:00:10]} 47. Bf1
{[%clk 0:00:36.4]} 47... Qb2+ {[%clk 0:00:09.6]} 48. Kg3 {[%clk 0:00:36.4]}
48... h2 {[%clk 0:00:09.4]} 49. Nxh2 {[%clk 0:00:36.3]} 49... a5 {[%clk
0:00:10.3]} 50. Nf3 {[%clk 0:00:36.1]} 50... a4 {[%clk 0:00:10.8]} 51. Nd4
{[%clk 0:00:35.2]} 51... a3 {[%clk 0:00:11.1]} 52. Bc4 {[%clk 0:00:35]} 52...
Qc3 {[%clk 0:00:10.9]} 53. Bb3 {[%clk 0:00:32.8]} 53... Qxe3+ {[%clk 0:00:10.6]}
54. Nf3 {[%clk 0:00:28.2]} 54... Qxb3 {[%clk 0:00:09.9]} 55. Kf2 {[%clk
0:00:25.5]} 55... Qxf3+ {[%clk 0:00:10]} 0-1

[Event "Early-Titled-Tuesday-Blitz-October-24-2023"]
[Site "Chess.com"]
[Date "2023.10.24"]
[Round "1"]
[White "Sjakkerntobi"]
[Black "K_A_S_T_O_R"]
[Result "0-1"]
[WhiteElo "2475"]
[BlackElo "2872"]
[TimeControl "180+1"]
[EndTime "8:08:14 PDT"]
[Termination "K_A_S_T_O_R won by checkmate"]

1. e4 {[%clk 0:03:00.9]} 1... c5 {[%clk 0:02:59.7]} 2. Nf3 {[%clk 0:03:01.2]}
2... d6 {[%clk 0:02:59.7]} 3. d4 {[%clk 0:03:00.9]} 3... cxd4 {[%clk 0:03:00.6]}
4. Nxd4 {[%clk 0:03:01.8]} 4... Nf6 {[%clk 0:03:01]} 5. Nc3 {[%clk 0:03:02.4]}
5... a6 {[%clk 0:03:01.5]} 6. Rg1 {[%clk 0:03:02.6]} 6... h6 {[%clk 0:02:56.3]}
7. g4 {[%clk 0:02:54.5]} 7... g5 {[%clk 0:02:56]} 8. Be3 {[%clk 0:02:52.1]} 8...
Nbd7 {[%clk 0:02:51.8]} 9. Qe2 {[%clk 0:02:40]} 9... Ne5 {[%clk 0:02:50.9]} 10.
h3 {[%clk 0:02:39.5]} 10... e6 {[%clk 0:02:42.5]} 11. O-O-O {[%clk 0:02:38.2]}
11... b5 {[%clk 0:02:38.7]} 12. f4 {[%clk 0:02:30.7]} 12... gxf4 {[%clk
0:02:38.1]} 13. Bxf4 {[%clk 0:02:31.5]} 13... Nfd7 {[%clk 0:02:34.6]} 14. Bg2
{[%clk 0:02:10.4]} 14... Bb7 {[%clk 0:02:33.2]} 15. Kb1 {[%clk 0:02:09.6]} 15...
Rc8 {[%clk 0:02:25.2]} 16. Nd5 {[%clk 0:02:06.2]} 16... exd5 {[%clk 0:02:19.9]}
17. exd5 {[%clk 0:02:07.1]} 17... Qc7 {[%clk 0:02:19.6]} 18. Nc6 {[%clk
0:02:02.6]} 18... Bg7 {[%clk 0:02:18.9]} 19. Be4 {[%clk 0:01:52.7]} 19... Kf8
{[%clk 0:02:12.3]} 20. g5 {[%clk 0:01:43.8]} 20... h5 {[%clk 0:02:03.2]} 21. g6
{[%clk 0:01:38.2]} 21... f6 {[%clk 0:02:01.5]} 22. Rgf1 {[%clk 0:01:18.8]} 22...
Re8 {[%clk 0:01:58.4]} 23. Qh2 {[%clk 0:01:01.1]} 23... Kg8 {[%clk 0:01:52.9]}
24. Nd4 {[%clk 0:00:47.5]} 24... Nc5 {[%clk 0:01:48.4]} 25. Bh1 {[%clk
0:00:37.4]} 25... Bc8 {[%clk 0:01:47.2]} 26. Rde1 {[%clk 0:00:28.6]} 26... Bd7
{[%clk 0:01:40.7]} 27. Qg3 {[%clk 0:00:28]} 27... h4 {[%clk 0:01:38.6]} 28. Qc3
{[%clk 0:00:24.7]} 28... Rc8 {[%clk 0:01:34.8]} 29. Qd2 {[%clk 0:00:20]} 29...
Re8 {[%clk 0:01:15.2]} 30. Bxe5 {[%clk 0:00:19.8]} 30... dxe5 {[%clk 0:01:05.1]}
31. Nf5 {[%clk 0:00:19.4]} 31... Bxf5 {[%clk 0:01:05.3]} 32. Rxf5 {[%clk
0:00:20.3]} 32... Qd6 {[%clk 0:00:59.1]} 33. Qb4 {[%clk 0:00:20.1]} 33... Nb7
{[%clk 0:00:52.9]} 34. Qg4 {[%clk 0:00:17.4]} 34... Rh6 {[%clk 0:00:48.2]} 35.
Rh5 {[%clk 0:00:17.2]} 35... f5 {[%clk 0:00:43.3]} 36. Qxf5 {[%clk 0:00:17.5]}
36... Qxg6 {[%clk 0:00:40.4]} 37. Be4 {[%clk 0:00:10.9]} 37... Qxf5 {[%clk
0:00:38.8]} 38. Rxf5 {[%clk 0:00:10.7]} 38... Nd6 {[%clk 0:00:38.9]} 39. Rg5
{[%clk 0:00:11.4]} 39... Nxe4 {[%clk 0:00:36.9]} 40. Rxe4 {[%clk 0:00:11.5]}
40... Kf7 {[%clk 0:00:35.2]} 41. b3 {[%clk 0:00:11]} 41... Bf6 {[%clk
0:00:35.1]} 42. Rf5 {[%clk 0:00:11.6]} 42... Ke7 {[%clk 0:00:32.5]} 43. c4
{[%clk 0:00:11.9]} 43... bxc4 {[%clk 0:00:32.2]} 44. bxc4 {[%clk 0:00:12.8]}
44... Kd6 {[%clk 0:00:32.7]} 45. Kc2 {[%clk 0:00:12.9]} 45... Rg8 {[%clk
0:00:31.3]} 46. Rf3 {[%clk 0:00:12.4]} 46... Rg2+ {[%clk 0:00:30.6]} 47. Kb3
{[%clk 0:00:12.1]} 47... Rg3 {[%clk 0:00:31]} 48. Ree3 {[%clk 0:00:11.6]} 48...
Rhg6 {[%clk 0:00:29]} 49. Kb4 {[%clk 0:00:10.8]} 49... Be7 {[%clk 0:00:27.4]}
50. Ka5 {[%clk 0:00:08.9]} 50... Kc5 {[%clk 0:00:24.6]} 51. Rc3 {[%clk 0:00:09]}
51... e4 {[%clk 0:00:22.4]} 52. Rfe3 {[%clk 0:00:08.2]} 52... Bd8+ {[%clk
0:00:19.2]} 53. Ka4 {[%clk 0:00:08.4]} 53... Rxe3 {[%clk 0:00:19.7]} 54. Rxe3
{[%clk 0:00:08.1]} 54... Kd4 {[%clk 0:00:20.6]} 55. Re1 {[%clk 0:00:08.1]} 55...
Rg3 {[%clk 0:00:20.7]} 56. d6 {[%clk 0:00:07.6]} 56... Rd3 {[%clk 0:00:19.8]}
57. Rc1 {[%clk 0:00:06.5]} 57... Kc5 {[%clk 0:00:16.1]} 58. d7 {[%clk
0:00:05.3]} 58... Be7 {[%clk 0:00:15.1]} 59. Re1 {[%clk 0:00:04.8]} 59... Kc6
{[%clk 0:00:15.3]} 60. Rxe4 {[%clk 0:00:04.8]} 60... Ra3# {[%clk 0:00:14.8]} 0-1